[Event "African Games-chT 2019"]
[Site "Casablanca"]
[Date "2019.08.25"]
[Round "8.12"]
[White "Ofowino, Toritsemuwa"]
[Black "Wakuruwarewa, Colletta"]
[Result "1-0"]
[ECO "A45"]
[WhiteElo "1877"]
[BlackElo "1587"]
[Annotator "NA"]
[PlyCount "143"]
[EventDate "2019.08.24"]
[EventType "team-tourn"]
[EventCountry "MAR"]
[SourceTitle "playchess.com"]
[Source "ChessBase"]
[SourceQuality "1"]
[WhiteTeam "Nigeria"]
[BlackTeam "Zimbabwe"]
[WhiteTeamCountry "NGR"]
[BlackTeamCountry "ZIM"]
[TimeControl "900+10"]

1. d4 {[%emt 0:00:00]} Nf6 {[%emt 0:00:00]} 2. Bf4 {[%emt 0:00:00]} e6 {[%emt 0:00:00]} 3. Nf3 {[%emt 0:00:00]} Be7 {[%emt 0:00:00]} 4. e3 {[%emt 0:00:06]} d5 {[%emt 0:00:02]} 5. Bd3 {[%emt 0:00:06]} O-O {[%emt 0:00:39]} 6. Nbd2 {[%emt 0:00:12]} c5 {[%emt 0:00:36]} 7. c3 {[%emt 0:00:01]} Nbd7 {[%emt 0:00:27]} 8. h3 {[%emt 0:01:30]} h6 {[%emt 0:00:04]} 9. Qe2 {[%emt 0:00:09]} Re8 {[%emt 0:00:20]} 10. O-O {[%emt 0:00:05]} Nf8 {[%emt 0:01:22]} 11. Ne5 {[%emt 0:00:07]} c4 {[%emt 0:01:14]} 12. Bc2 {[%emt 0:00:02]} Bd6 {[%emt 0:00:32]} 13. e4 {[%emt 0:00:23]} b5 {[%emt 0:00:42]} 14. Nxf7 {[%emt 0:01:33]} Kxf7 {[%emt 0:00:05]} 15. Bxd6 {[%emt 0:00:01]} dxe4 {[%emt 0:00:34]} 16. Bxf8 {[%emt 0:00:03]} Kxf8 {[%emt 0:01:33]} 17. Nxe4 {[%emt 0:00:02]} Bb7 {[%emt 0:00:28]} 18. Nc5 {[%emt 0:00:44]} Bd5 {[%emt 0:00:17]} 19. Qe5 {[%emt 0:00:02]} Nd7 {[%emt 0:00:36]} 20. Nxd7+ {[%emt 0:00:39]} Qxd7 {[%emt 0:00:03]} 21. Bg6 {[%emt 0:00:00]} Re7 {[%emt 0:00:37]} 22. Rae1 {[%emt 0:00:13]} Qb7 {[%emt 0:00:30]} 23. Be4 {[%emt 0:00:56]} Rae8 {[%emt 0:01:59]} 24. Re3 {[%emt 0:00:36]} Bxe4 {[%emt 0:01:23]} 25. Rxe4 {[%emt 0:00:02]} Qd5 {[%emt 0:00:11]} 26. Rfe1 {[%emt 0:00:03]} a5 {[%emt 0:01:26]} 27. Qf4+ {[%emt 0:01:26]} Rf7 {[%emt 0:00:27]} 28. Qe3 {[%emt 0:00:00]} Rfe7 {[%emt 0:00:44]} 29. Re5 {[%emt 0:00:02]} Qc6 {[%emt 0:00:01]} 30. Rc5 {[%emt 0:00:20]} Qb7 {[%emt 0:00:09]} 31. Qe5 {[%emt 0:00:01]} b4 {[%emt 0:01:04]} 32. Rxc4 {[%emt 0:01:05]} bxc3 {[%emt 0:00:21]} 33. bxc3 {[%emt 0:00:01]} Qd5 {[%emt 0:00:44]} 34. Qxd5 {[%emt 0:01:31]} exd5 {[%emt 0:00:03]} 35. Rxe7 {[%emt 0:00:00]} Rxe7 {[%emt 0:00:02]} 36. Rc8+ {[%emt 0:00:01]} Kf7 {[%emt 0:00:03]} 37. Kf1 {[%emt 0:00:01]} Rb7 {[%emt 0:00:09]} 38. Rc5 {[%emt 0:01:14]} Rb1+ {[%emt 0:00:02]} 39. Ke2 {[%emt 0:00:00]} Rb2+ {[%emt 0:00:02]} 40. Ke3 {[%emt 0:00:02]} Rxa2 {[%emt 0:00:04]} 41. Rxd5 {[%emt 0:00:00]} Ke6 {[%emt 0:00:24]} 42. Re5+ {[%emt 0:01:24]} Kf6 {[%emt 0:00:27]} 43. Re4 {[%emt 0:00:47]} a4 {[%emt 0:00:21]} 44. Re8 {[%emt 0:00:20]} Kf7 {[%emt 0:00:26]} 45. Ra8 {[%emt 0:01:10]} a3 {[%emt 0:00:16]} 46. Ra6 {[%emt 0:00:11]} Ra1 {[%emt 0:00:05]} 47. Kd3 {[%emt 0:00:02]} a2 {[%emt 0:00:15]} 48. Kc4 {[%emt 0:00:00]} Ke7 {[%emt 0:00:01]} 49. Kc5 {[%emt 0:00:10]} Kd7 {[%emt 0:00:14]} 50. c4 {[%emt 0:00:03]} g5 {[%emt 0:00:08]} 51. Ra7+ {[%emt 0:00:11]} Kc8 {[%emt 0:00:06]} 52. Kc6 {[%emt 0:00:05]} Kb8 {[%emt 0:00:03]} 53. Ra4 {[%emt 0:00:01]} h5 {[%emt 0:00:05]} 54. d5 {[%emt 0:00:03]} Rc1 {[%emt 0:00:04]} 55. Rxa2 {[%emt 0:00:01]} Rxc4+ {[%emt 0:00:02]} 56. Kd6 {[%emt 0:00:01]} g4 {[%emt 0:00:09]} 57. hxg4 {[%emt 0:00:05]} Rxg4 {[%emt 0:00:04]} 58. g3 {[%emt 0:00:02]} h4 {[%emt 0:00:01]} 59. gxh4 {[%emt 0:00:01]} Rxh4 {[%emt 0:00:01]} 60. Re2 {[%emt 0:00:07]} Rh2 {[%emt 0:00:09]} 61. Kc6 {[%emt 0:00:07]} Rh1 {[%emt 0:00:21]} 62. Re8+ {[%emt 0:00:27]} Ka7 {[%emt 0:00:01]} 63. Kd7 {[%emt 0:00:03]} Rh7+ {[%emt 0:00:12]} 64. Re7 {[%emt 0:00:08]} Rh2 {[%emt 0:00:05]} 65. Rf7 {[%emt 0:00:02]} Rh1 {[%emt 0:00:04]} 66. d6 {[%emt 0:00:01]} Kb6 {[%emt 0:00:09]} 67. f4 {[%emt 0:00:08]} Rd1 {[%emt 0:00:06]} 68. Rf6 {[%emt 0:00:03]} Rd4 {[%emt 0:00:06]} 69. f5 {[%emt 0:00:01]} Kc5 {[%emt 0:00:11]} 70. Ke7 {[%emt 0:00:04]} Re4+ {[%emt 0:00:04]} 71. Re6 {[%emt 0:00:02]} Rf4 {[%emt 0:00:05]} 72. f6 1-0

[Event "African Games-chT 2019"]
[Site "Casablanca"]
[Date "2019.08.25"]
[Round "8.13"]
[White "Beukes, Dante M"]
[Black "Mwale, Joseph"]
[Result "0-1"]
[ECO "C47"]
[WhiteElo "2130"]
[BlackElo "2231"]
[Annotator "NA"]
[PlyCount "88"]
[EventDate "2019.08.24"]
[EventType "team-tourn"]
[EventCountry "MAR"]
[SourceTitle "playchess.com"]
[Source "ChessBase"]
[SourceQuality "1"]
[WhiteTeam "Namibia"]
[BlackTeam "MAW"]
[WhiteTeamCountry "NAM"]
[TimeControl "900+10"]

1. e4 {[%emt 0:00:00]} e5 {[%emt 0:00:00]} 2. Nf3 {[%emt 0:00:03]} Nc6 {[%emt 0:00:00]} 3. Nc3 {[%emt 0:00:11]} Nf6 {[%emt 0:00:14]} 4. d4 {[%emt 0:00:12]} exd4 {[%emt 0:00:02]} 5. Nxd4 {[%emt 0:00:01]} Bb4 {[%emt 0:00:02]} 6. Nxc6 {[%emt 0:00:02]} bxc6 {[%emt 0:00:01]} 7. Bd3 {[%emt 0:00:03]} d5 {[%emt 0:00:02]} 8. exd5 {[%emt 0:00:01]} cxd5 {[%emt 0:00:01]} 9. O-O {[%emt 0:00:02]} O-O {[%emt 0:00:03]} 10. h3 {[%emt 0:00:02]} c6 {[%emt 0:00:55]} 11. Qf3 {[%emt 0:00:02]} Bd6 {[%emt 0:00:07]} 12. Bf4 {[%emt 0:00:06]} Rb8 {[%emt 0:00:13]} 13. b3 {[%emt 0:00:01]} Rb4 {[%emt 0:00:22]} 14. Bxd6 {[%emt 0:00:02]} Qxd6 {[%emt 0:00:01]} 15. Qg3 {[%emt 0:00:02]} Qxg3 {[%emt 0:00:22]} 16. fxg3 {[%emt 0:00:02]} Be6 {[%emt 0:00:04]} 17. a3 {[%emt 0:00:37]} Rbb8 {[%emt 0:00:22]} 18. Na4 {[%emt 0:00:21]} Nd7 {[%emt 0:00:11]} 19. b4 {[%emt 0:00:59]} g6 {[%emt 0:01:36]} 20. Rac1 {[%emt 0:01:06]} Rfc8 {[%emt 0:00:19]} 21. Ba6 {[%emt 0:00:57]} Rd8 {[%emt 0:00:21]} 22. Rfd1 {[%emt 0:01:45]} Kg7 {[%emt 0:02:39]} 23. Kf2 {[%emt 0:00:26]} Nf6 {[%emt 0:00:51]} 24. Bd3 {[%emt 0:03:35]} Rbc8 {[%emt 0:01:18]} 25. Ke3 {[%emt 0:03:22]} d4+ {[%emt 0:00:32]} 26. Kf2 {[%emt 0:00:08]} Nd5 {[%emt 0:00:08]} 27. c3 {[%emt 0:00:38]} Ne3 {[%emt 0:03:15]} 28. Re1 {[%emt 0:00:29]} Bc4 {[%emt 0:01:52]} 29. cxd4 {[%emt 0:02:20]} Rxd4 {[%emt 0:01:28]} 30. Rxe3 {[%emt 0:00:45]} Bxd3 {[%emt 0:00:54]} 31. Nc5 {[%emt 0:00:21]} Bb5 {[%emt 0:00:28]} 32. Re7 {[%emt 0:00:33]} Rd2+ {[%emt 0:00:01]} 33. Kf3 {[%emt 0:00:04]} Kf8 {[%emt 0:00:46]} 34. Rce1 {[%emt 0:00:27]} Ra2 {[%emt 0:00:01]} 35. R1e3 {[%emt 0:00:06]} Bc4 {[%emt 0:00:05]} 36. Rxa7 {[%emt 0:00:21]} Bd5+ {[%emt 0:00:12]} 37. Kg4 {[%emt 0:00:13]} Kg7 {[%emt 0:00:15]} 38. Ne6+ {[%emt 0:00:14]} Kf6 {[%emt 0:00:25]} 39. Nf4 {[%emt 0:00:02]} h5+ {[%emt 0:00:03]} 40. Nxh5+ {[%emt 0:00:30]} gxh5+ {[%emt 0:00:04]} 41. Kxh5 {[%emt 0:00:01]} Rxg2 {[%emt 0:00:05]} 42. Kg4 {[%emt 0:00:20]} Rf2 {[%emt 0:00:05]} 43. h4 {[%emt 0:00:15]} Be6+ {[%emt 0:00:04]} 44. Rxe6+ {[%emt 0:00:03]} fxe6 {[%emt 0:00:03]} 0-1

[Event "African Games-chT 2019"]
[Site "Casablanca"]
[Date "2019.08.25"]
[Round "8.14"]
[White "Mphungu, Gerrard"]
[Black "Eichab, Charles"]
[Result "1-0"]
[ECO "E32"]
[WhiteElo "2107"]
[BlackElo "2016"]
[Annotator "NA"]
[PlyCount "63"]
[EventDate "2019.08.24"]
[EventType "team-tourn"]
[EventCountry "MAR"]
[SourceTitle "playchess.com"]
[Source "ChessBase"]
[SourceQuality "1"]
[WhiteTeam "MAW"]
[BlackTeam "Namibia"]
[BlackTeamCountry "NAM"]
[TimeControl "900+10"]

1. d4 {[%emt 0:00:00]} Nf6 {[%emt 0:00:00]} 2. c4 {[%emt 0:00:00]} e6 {[%emt 0:00:00]} 3. Nc3 {[%emt 0:00:00]} Bb4 {[%emt 0:00:01]} 4. Qc2 {[%emt 0:00:00]} Bxc3+ {[%emt 0:00:18]} 5. Qxc3 {[%emt 0:00:05]} b6 {[%emt 0:00:05]} 6. Qg3 {[%emt 0:02:51]} O-O {[%emt 0:00:51]} 7. Bh6 {[%emt 0:01:16]} Ne8 {[%emt 0:00:04]} 8. Bg5 {[%emt 0:01:19]} f6 {[%emt 0:00:57]} 9. Bd2 {[%emt 0:00:35]} d5 {[%emt 0:03:00]} 10. e3 {[%emt 0:01:29]} Ba6 {[%emt 0:01:38]} 11. b3 {[%emt 0:02:24]} Nd6 {[%emt 0:00:07]} 12. Qh3 {[%emt 0:01:15]} Qe7 {[%emt 0:02:32]} 13. Bd3 {[%emt 0:00:49]} f5 {[%emt 0:01:25]} 14. Rc1 {[%emt 0:01:31]} Nd7 {[%emt 0:02:19]} 15. Ne2 {[%emt 0:01:20]} e5 {[%emt 0:00:57]} 16. Bb4 {[%emt 0:01:09]} c5 {[%emt 0:00:21]} 17. dxc5 {[%emt 0:00:10]} bxc5 {[%emt 0:00:03]} 18. Ba3 {[%emt 0:00:29]} e4 {[%emt 0:00:08]} 19. Bc2 {[%emt 0:00:23]} dxc4 {[%emt 0:00:42]} 20. bxc4 {[%emt 0:00:05]} Bxc4 {[%emt 0:01:40]} 21. Bb3 {[%emt 0:00:04]} Bxb3 {[%emt 0:00:10]} 22. axb3 {[%emt 0:00:01]} Ne5 {[%emt 0:00:17]} 23. O-O {[%emt 0:00:49]} Nd3 {[%emt 0:00:02]} 24. Rcd1 {[%emt 0:00:21]} Nb5 {[%emt 0:00:07]} 25. Bc1 {[%emt 0:00:09]} Qe6 {[%emt 0:00:21]} 26. Nf4 {[%emt 0:00:10]} Qxb3 {[%emt 0:00:15]} 27. Nxd3 {[%emt 0:00:04]} exd3 {[%emt 0:00:03]} 28. Bd2 {[%emt 0:00:15]} Nc3 {[%emt 0:00:43]} 29. Bxc3 {[%emt 0:00:07]} Qxc3 {[%emt 0:00:01]} 30. Qf3 {[%emt 0:00:12]} Qc4 {[%emt 0:00:27]} 31. Rc1 {[%emt 0:00:08]} Qe4 {[%emt 0:00:22]} 32. Rxc5 {[%emt 0:00:25]} 1-0

[Event "African Games-chT 2019"]
[Site "Casablanca"]
[Date "2019.08.25"]
[Round "8.15"]
[White "Tjaronda, Nicola"]
[Black "Nkhoma, Desiderata"]
[Result "1-0"]
[ECO "A20"]
[WhiteElo "1545"]
[BlackElo "1481"]
[Annotator "NA"]
[PlyCount "127"]
[EventDate "2019.08.24"]
[EventType "team-tourn"]
[EventCountry "MAR"]
[SourceTitle "playchess.com"]
[Source "ChessBase"]
[SourceQuality "1"]
[WhiteTeam "Namibia"]
[BlackTeam "MAW"]
[WhiteTeamCountry "NAM"]
[TimeControl "900+10"]

1. c4 {[%emt 0:00:00]} e5 {[%emt 0:00:00]} 2. g3 {[%emt 0:00:00]} Nf6 {[%emt 0:00:00]} 3. Bg2 {[%emt 0:00:00]} Be7 {[%emt 0:00:10]} 4. d3 {[%emt 0:00:04]} O-O {[%emt 0:00:04]} 5. Nc3 {[%emt 0:00:02]} c6 {[%emt 0:00:07]} 6. Nf3 {[%emt 0:00:10]} d6 {[%emt 0:00:09]} 7. O-O {[%emt 0:00:18]} Be6 {[%emt 0:00:17]} 8. b3 {[%emt 0:00:40]} Qd7 {[%emt 0:00:03]} 9. Ng5 {[%emt 0:00:17]} Bf5 {[%emt 0:00:15]} 10. Nge4 {[%emt 0:01:14]} Bh3 {[%emt 0:01:08]} 11. Bg5 {[%emt 0:01:34]} Bxg2 {[%emt 0:00:22]} 12. Kxg2 {[%emt 0:00:01]} Nxe4 {[%emt 0:00:13]} 13. Nxe4 {[%emt 0:00:01]} Bxg5 {[%emt 0:01:33]} 14. Nxg5 {[%emt 0:00:01]} Qf5 {[%emt 0:00:17]} 15. Ne4 {[%emt 0:00:52]} Nd7 {[%emt 0:00:45]} 16. Nxd6 {[%emt 0:00:53]} Qe6 {[%emt 0:00:59]} 17. Nxb7 {[%emt 0:01:44]} Nf6 {[%emt 0:00:59]} 18. Nc5 {[%emt 0:00:35]} Qd6 {[%emt 0:01:28]} 19. Ne4 {[%emt 0:00:33]} Nxe4 {[%emt 0:00:41]} 20. dxe4 {[%emt 0:00:03]} Qf6 {[%emt 0:01:09]} 21. Qc2 {[%emt 0:00:29]} h5 {[%emt 0:00:32]} 22. h4 {[%emt 0:00:50]} Rad8 {[%emt 0:00:46]} 23. Rad1 {[%emt 0:00:05]} g5 {[%emt 0:00:24]} 24. hxg5 {[%emt 0:00:39]} Qxg5 {[%emt 0:00:02]} 25. Qc1 {[%emt 0:01:50]} Qg6 {[%emt 0:00:40]} 26. Qe3 {[%emt 0:01:53]} Kg7 {[%emt 0:02:29]} 27. Rxd8 {[%emt 0:01:27]} Rxd8 {[%emt 0:00:06]} 28. Rh1 {[%emt 0:00:06]} Rh8 {[%emt 0:00:29]} 29. Kf1 {[%emt 0:00:18]} a6 {[%emt 0:00:33]} 30. f4 {[%emt 0:00:25]} exf4 {[%emt 0:02:42]} 31. gxf4 {[%emt 0:00:03]} Qd6 {[%emt 0:00:12]} 32. Kf2 {[%emt 0:01:01]} Kf8 {[%emt 0:00:13]} 33. e5 {[%emt 0:00:15]} Qe6 {[%emt 0:00:27]} 34. Qd2 {[%emt 0:00:07]} Qe7 {[%emt 0:00:15]} 35. Qd6 {[%emt 0:00:05]} Qxd6 {[%emt 0:00:03]} 36. exd6 {[%emt 0:00:01]} Ke8 {[%emt 0:00:02]} 37. e4 Kd7 {[%emt 0:00:19]} 38. e5 {[%emt 0:00:06]} h4 {[%emt 0:00:11]} 39. Rh3 {[%emt 0:00:20]} f6 {[%emt 0:00:14]} 40. Ke3 {[%emt 0:00:08]} fxe5 {[%emt 0:00:05]} 41. fxe5 {[%emt 0:00:03]} Ke6 {[%emt 0:00:02]} 42. Ke4 {[%emt 0:00:02]} Rh7 {[%emt 0:00:03]} 43. b4 {[%emt 0:00:36]} Rh5 {[%emt 0:00:06]} 44. Kd4 {[%emt 0:00:12]} Rh7 {[%emt 0:00:22]} 45. a4 {[%emt 0:00:08]} Rh8 {[%emt 0:00:07]} 46. b5 {[%emt 0:00:06]} cxb5 {[%emt 0:00:14]} 47. cxb5 {[%emt 0:00:10]} axb5 {[%emt 0:00:05]} 48. axb5 {[%emt 0:00:01]} Rb8 {[%emt 0:00:26]} 49. Rxh4 {[%emt 0:01:23]} Rxb5 {[%emt 0:00:02]} 50. Rh6+ {[%emt 0:00:01]} Kd7 {[%emt 0:00:13]} 51. Ke4 {[%emt 0:00:14]} Ra5 {[%emt 0:00:12]} 52. Kf5 {[%emt 0:00:07]} Ra1 {[%emt 0:00:04]} 53. Rh7+ {[%emt 0:00:25]} Kd8 {[%emt 0:00:12]} 54. Ke6 {[%emt 0:00:13]} Kc8 {[%emt 0:00:16]} 55. Rh8+ {[%emt 0:00:12]} Kb7 {[%emt 0:00:04]} 56. d7 {[%emt 0:00:20]} Ra6+ {[%emt 0:00:18]} 57. Ke7 {[%emt 0:00:04]} Ra7 {[%emt 0:00:09]} 58. d8=Q {[%emt 0:00:11]} Ka6+ {[%emt 0:00:09]} 59. Ke6 {[%emt 0:00:02]} Rb7 {[%emt 0:00:08]} 60. Kf5 {[%emt 0:00:13]} Ka7 {[%emt 0:00:09]} 61. Qa8+ {[%emt 0:00:05]} Kb6 {[%emt 0:00:06]} 62. Rh6+ {[%emt 0:00:02]} Kc7 {[%emt 0:00:07]} 63. Rh7+ {[%emt 0:00:17]} Kb6 {[%emt 0:00:03]} 64. Qxb7+ 1-0

[Event "African Games-chT 2019"]
[Site "Casablanca"]
[Date "2019.08.25"]
[Round "8.16"]
[White "Msukwa, Tupokiwe"]
[Black "Mentile, Lishen"]
[Result "1-0"]
[ECO "D10"]
[WhiteElo "1289"]
[BlackElo "1513"]
[Annotator "NA"]
[PlyCount "139"]
[EventDate "2019.08.24"]
[EventType "team-tourn"]
[EventCountry "MAR"]
[SourceTitle "playchess.com"]
[Source "ChessBase"]
[SourceQuality "1"]
[WhiteTeam "MAW"]
[BlackTeam "Namibia"]
[BlackTeamCountry "NAM"]
[TimeControl "900+10"]

1. d4 {[%emt 0:00:00]} d5 {[%emt 0:00:00]} 2. c4 {[%emt 0:00:00]} c6 {[%emt 0:00:00]} 3. e3 {[%emt 0:00:00]} Nf6 {[%emt 0:00:00]} 4. Nc3 {[%emt 0:00:06]} Bf5 {[%emt 0:00:02]} 5. Nf3 {[%emt 0:00:07]} Nbd7 {[%emt 0:00:11]} 6. a3 {[%emt 0:00:06]} h6 {[%emt 0:00:23]} 7. c5 {[%emt 0:00:17]} Qc7 {[%emt 0:01:27]} 8. h3 {[%emt 0:00:17]} e6 {[%emt 0:01:35]} 9. b4 {[%emt 0:00:08]} a5 {[%emt 0:00:40]} 10. Bb2 {[%emt 0:00:05]} b6 {[%emt 0:01:28]} 11. Bd3 {[%emt 0:00:55]} Bxd3 {[%emt 0:02:32]} 12. Qxd3 {[%emt 0:00:06]} Be7 {[%emt 0:00:03]} 13. O-O {[%emt 0:00:44]} O-O {[%emt 0:00:01]} 14. e4 {[%emt 0:03:29]} dxe4 {[%emt 0:02:28]} 15. Nxe4 {[%emt 0:00:11]} Nxe4 {[%emt 0:00:14]} 16. Qxe4 {[%emt 0:00:06]} Nf6 {[%emt 0:00:02]} 17. Qe5 {[%emt 0:00:56]} Qb7 {[%emt 0:01:19]} 18. Bc3 {[%emt 0:02:57]} bxc5 {[%emt 0:00:18]} 19. bxc5 {[%emt 0:00:10]} Qd7 {[%emt 0:00:10]} 20. Rab1 {[%emt 0:00:10]} Nd5 {[%emt 0:00:10]} 21. Bd2 {[%emt 0:02:47]} Nf6 {[%emt 0:03:20]} 22. Rfe1 {[%emt 0:01:34]} Qd5 {[%emt 0:00:42]} 23. Qxd5 {[%emt 0:00:39]} Nxd5 {[%emt 0:00:24]} 24. Rb7 {[%emt 0:00:49]} Bf6 {[%emt 0:00:16]} 25. Reb1 {[%emt 0:00:59]} Ra6 {[%emt 0:00:36]} 26. Rb8 {[%emt 0:01:04]} Rxb8 {[%emt 0:00:00]} 27. Rxb8+ {[%emt 0:00:02]} Kh7 {[%emt 0:00:01]} 28. Rc8 {[%emt 0:00:26]} Ne7 {[%emt 0:00:34]} 29. Rc7 {[%emt 0:00:09]} Kg6 {[%emt 0:00:34]} 30. Ne5+ {[%emt 0:00:06]} Bxe5 {[%emt 0:00:01]} 31. dxe5 {[%emt 0:00:01]} Nd5 {[%emt 0:00:01]} 32. Rb7 {[%emt 0:00:03]} f6 {[%emt 0:00:21]} 33. exf6 {[%emt 0:00:02]} Kxf6 {[%emt 0:00:01]} 34. Bc1 {[%emt 0:00:10]} h5 {[%emt 0:00:25]} 35. Bb2+ {[%emt 0:00:05]} e5 {[%emt 0:00:07]} 36. f3 {[%emt 0:00:12]} g6 {[%emt 0:00:03]} 37. Kf2 {[%emt 0:00:05]} Ke6 {[%emt 0:00:11]} 38. Rg7 {[%emt 0:00:11]} Nf4 {[%emt 0:00:18]} 39. Rb7 {[%emt 0:00:11]} Nd5 {[%emt 0:00:04]} 40. Rg7 {[%emt 0:00:06]} Nf4 {[%emt 0:00:01]} 41. Rb7 {[%emt 0:00:07]} Nd5 {[%emt 0:00:01]} 42. Rg7 {[%emt 0:00:38]} Kf6 {[%emt 0:00:31]} 43. Rg8 {[%emt 0:00:06]} Kf7 {[%emt 0:00:16]} 44. Rc8 {[%emt 0:00:09]} Ke6 {[%emt 0:00:04]} 45. Bc1 {[%emt 0:00:14]} Kd7 {[%emt 0:00:20]} 46. Rg8 {[%emt 0:00:08]} Nf4 {[%emt 0:00:12]} 47. Bxf4 {[%emt 0:00:02]} exf4 48. Rxg6 Ra7 {[%emt 0:00:12]} 49. Rf6 {[%emt 0:00:26]} Ke8 {[%emt 0:00:15]} 50. Rxf4 {[%emt 0:00:03]} Rd7 {[%emt 0:00:11]} 51. Rf6 {[%emt 0:00:10]} Rd3 {[%emt 0:00:10]} 52. Rxc6 {[%emt 0:00:14]} Rxa3 {[%emt 0:00:07]} 53. Ra6 {[%emt 0:00:02]} Kd7 {[%emt 0:00:01]} 54. c6+ Kc7 55. f4 {[%emt 0:00:18]} h4 {[%emt 0:00:00]} 56. f5 {[%emt 0:00:02]} Ra2+ {[%emt 0:00:14]} 57. Kf3 {[%emt 0:00:03]} Ra3+ {[%emt 0:00:01]} 58. Kg4 {[%emt 0:00:03]} Rg3+ {[%emt 0:00:03]} 59. Kxh4 {[%emt 0:00:03]} Rxg2 {[%emt 0:00:00]} 60. f6 {[%emt 0:00:06]} Rf2 {[%emt 0:00:01]} 61. f7 {[%emt 0:00:18]} a4 {[%emt 0:01:06]} 62. Rxa4 {[%emt 0:00:26]} Kxc6 {[%emt 0:00:12]} 63. Ra7 {[%emt 0:00:05]} Kd6 {[%emt 0:00:09]} 64. Kg5 {[%emt 0:00:05]} Ke6 {[%emt 0:00:03]} 65. Kg6 {[%emt 0:00:06]} Rg2+ {[%emt 0:00:01]} 66. Kh7 {[%emt 0:00:08]} Rf2 {[%emt 0:00:05]} 67. Kg8 {[%emt 0:00:05]} Rg2+ {[%emt 0:00:01]} 68. Kf8 {[%emt 0:00:05]} Rg3 {[%emt 0:00:36]} 69. Re7+ {[%emt 0:00:06]} Kf6 {[%emt 0:00:13]} 70. Ke8 {[%emt 0:00:05]} 1-0

[Event "African Games-chT 2019"]
[Site "Casablanca"]
[Date "2019.08.25"]
[Round "8.17"]
[White "Aderito, Pedro"]
[Black "Hamdouchi, Hicham"]
[Result "1/2-1/2"]
[ECO "B30"]
[WhiteElo "2301"]
[BlackElo "2562"]
[Annotator "ChessBase"]
[PlyCount "140"]
[EventDate "2019.08.24"]
[EventType "team-tourn"]
[EventCountry "MAR"]
[SourceTitle "playchess.com"]
[Source "ChessBase"]
[SourceQuality "1"]
[WhiteTeam "Angola"]
[BlackTeam "Morocco"]
[WhiteTeamCountry "ANG"]
[BlackTeamCountry "MAR"]
[TimeControl "900+10"]

1. e4 {[%emt 0:00:00]} c5 {[%emt 0:00:00]} 2. Nf3 {[%emt 0:00:00]} Nc6 {[%emt 0:00:00]} 3. Nc3 {[%emt 0:00:10]} g6 {[%emt 0:00:00]} 4. Bb5 {[%emt 0:00:18]} Bg7 {[%emt 0:00:34]} 5. Bxc6 {[%emt 0:00:08]} dxc6 {[%emt 0:00:14]} 6. O-O {[%emt 0:00:19]} e5 {[%emt 0:00:08]} 7. d3 {[%emt 0:00:13]} Qe7 {[%emt 0:00:14]} 8. Re1 {[%emt 0:00:13]} Nf6 {[%emt 0:00:09]} 9. a3 {[%emt 0:00:46]} a5 {[%emt 0:00:16]} 10. b3 {[%emt 0:00:34]} Nd7 {[%emt 0:00:19]} 11. Be3 {[%emt 0:00:26]} b6 {[%emt 0:00:38]} 12. Qd2 {[%emt 0:04:00]} O-O {[%emt 0:00:10]} 13. h3 {[%emt 0:00:33]} Re8 {[%emt 0:00:09]} 14. Nh2 {[%emt 0:00:11]} Nf8 {[%emt 0:03:38]} 15. Na4 {[%emt 0:00:24]} Rb8 {[%emt 0:00:02]} 16. b4 {[%emt 0:00:13]} axb4 {[%emt 0:00:14]} 17. axb4 {[%emt 0:00:02]} Ne6 {[%emt 0:00:52]} 18. bxc5 {[%emt 0:00:10]} b5 {[%emt 0:00:02]} 19. Qb4 {[%emt 0:00:27]} f5 {[%emt 0:03:03]} 20. exf5 {[%emt 0:00:15]} gxf5 {[%emt 0:00:01]} 21. Nc3 {[%emt 0:00:57]} Kh8 {[%emt 0:02:50]} 22. Ne2 {[%emt 0:03:02]} Bf6 {[%emt 0:01:21]} 23. Kh1 {[%emt 0:00:19]} Rg8 {[%emt 0:00:20]} 24. Ra3 {[%emt 0:02:55]} Rb7 {[%emt 0:00:09]} 25. f4 {[%emt 0:01:18]} Qg7 {[%emt 0:01:27]} 26. Rg1 {[%emt 0:00:25]} exf4 {[%emt 0:00:03]} 27. Nxf4 {[%emt 0:00:04]} Nxf4 {[%emt 0:00:05]} 28. Bxf4 {[%emt 0:00:04]} Be6 {[%emt 0:00:05]} 29. d4 {[%emt 0:00:23]} Bxd4 {[%emt 0:00:29]} 30. Rg3 {[%emt 0:00:29]} Qf6 {[%emt 0:00:01]} 31. Nf3 {[%emt 0:00:11]} Bc3 {[%emt 0:00:56]} 32. Rxg8+ {[%emt 0:00:22]} Kxg8 {[%emt 0:00:03]} 33. Qa3 {[%emt 0:00:01]} Rd7 {[%emt 0:00:47]} 34. Qa8+ {[%emt 0:00:07]} Rd8 {[%emt 0:00:38]} 35. Qxc6 {[%emt 0:00:04]} Bd5 {[%emt 0:00:02]} 36. Qxb5 {[%emt 0:00:05]} Qe6 {[%emt 0:00:27]} 37. Ng5 {[%emt 0:00:33]} Qh6 {[%emt 0:00:02]} 38. Qb6 {[%emt 0:00:20]} Bf6 {[%emt 0:00:11]} 39. c4 {[%emt 0:00:04]} Bxg5 {[%emt 0:00:24]} 40. Qxh6 {[%emt 0:00:08]} Bxh6 {[%emt 0:00:01]} 41. Bxh6 {[%emt 0:00:03]} Be4 {[%emt 0:00:01]} 42. Bg5 {[%emt 0:00:21]} Rd3 {[%emt 0:00:04]} 43. Kh2 {[%emt 0:00:02]} Rc3 {[%emt 0:00:01]} 44. Rc1 {[%emt 0:00:06]} Ra3 {[%emt 0:00:00]} 45. Bf4 {[%emt 0:00:08]} Ra2 {[%emt 0:00:02]} 46. Rg1 {[%emt 0:00:16]} Rc2 {[%emt 0:00:02]} 47. Kg3 {[%emt 0:00:03]} Kf7 {[%emt 0:00:06]} 48. Bd6 {[%emt 0:00:05]} Ke6 {[%emt 0:00:15]} 49. h4 {[%emt 0:00:06]} h5 {[%emt 0:00:06]} 50. Bf8 {[%emt 0:00:10]} Ke5 {[%emt 0:00:21]} 51. Bg7+ {[%emt 0:00:11]} Ke6 {[%emt 0:00:01]} 52. Bf8 {[%emt 0:00:01]} Rxc4 {[%emt 0:00:14]} 53. Rf1 {[%emt 0:00:16]} Rc3+ {[%emt 0:00:01]} 54. Kf4 {[%emt 0:00:04]} Bxg2 {[%emt 0:00:13]} 55. Rb1 {[%emt 0:00:13]} Kf7 {[%emt 0:00:25]} 56. Rb8 {[%emt 0:00:09]} Be4 {[%emt 0:00:38]} 57. Bd6 {[%emt 0:00:28]} Ke6 {[%emt 0:00:15]} 58. Re8+ {[%emt 0:00:06]} Kd5 {[%emt 0:00:09]} 59. Rh8 {[%emt 0:00:04]} Bf3 {[%emt 0:00:31]} 60. Kxf5 {[%emt 0:00:15]} Bg4+ {[%emt 0:00:01]} 61. Kg5 {[%emt 0:00:01]} Rc4 {[%emt 0:00:18]} 62. Rxh5 {[%emt 0:00:28]} Bxh5 {[%emt 0:00:02]} 63. Kxh5 {[%emt 0:00:01]} Ke6 {[%emt 0:00:02]} 64. Kg5 {[%emt 0:00:03]} Kf7 {[%emt 0:00:09]} 65. h5 {[%emt 0:00:18]} Rd4 {[%emt 0:00:00]} 66. Kf5 {[%emt 0:00:12]} Rd5+ {[%emt 0:00:04]} 67. Kg4 {[%emt 0:00:28]} Kg7 {[%emt 0:00:06]} 68. Be7 {[%emt 0:00:10]} Kf7 {[%emt 0:00:06]} 69. Bd6 {[%emt 0:00:02]} Kg7 {[%emt 0:00:01]} 70. Be7 {[%emt 0:00:03]} Kf7 {[%emt 0:00:01]} 1/2-1/2